Workbook

Sheet Frequentist
A1: FROM: | B1: Mark Biegert
A2: SUBJECT: | B2: German Tank Problem Example | H2: Title | I2: Frequentist German Tank Production Model
A3: DATE: | B3: 2015-04-21 | H3: X-Axis | I3: Bin
H4: Y-Axis | I4: Percentage (%)
A5: Reference Link
B6: Wikipedia
B7: Wikieducator
A9: Monte Carlo Simulation
A11: max | B11: 10000
A12: min | B12: 1
A13: k | B13: 100 | E13: Bins | F13: Freq | G13: Percentage
A14: Ave | B14: =AVERAGE(_Predictions) -> 9981.5572 | E14: 9700 | F14: =FREQUENCY(_Predictions,_bins) -> 4 | G14: =F14/$F$35 -> 0.04
E15: 9730 | F15: 0 | G15: =F15/$F$35 -> 0
A16: Sample Set | B16: Max Val | C16: Max Est | E16: 9760 | F16: 0 | G16: 0
A17: 1 | B17: =RANDSamples(_min,_max,_k) -> 9984 | C17: =B17*(1+1/_k)-1 -> 10082.84 | E17: 9790 | F17: 2 | G17: 0.02
A18: 2 | B18: 9914 | C18: 10012.14 | E18: 9820 | F18: 4 | G18: 0.04
A19: 3 | B19: 9971 | C19: 10069.71 | E19: 9850 | F19: 1 | G19: 0.01
A20: 4 | B20: 9907 | C20: 10005.07 | E20: 9880 | F20: 3 | G20: 0.03
A21: 5 | B21: 9762 | C21: 9858.62 | E21: 9910 | F21: 6 | G21: 0.06
A22: 6 | B22: 9814 | C22: 9911.14 | E22: 9940 | F22: 11 | G22: 0.11
A23: 7 | B23: 9781 | C23: 9877.81 | E23: 9970 | F23: 4 | G23: 0.04
A24: 8 | B24: 9747 | C24: 9843.47 | E24: 10000 | F24: 7 | G24: 0.07
A25: 9 | B25: 9980 | C25: 10078.8 | E25: 10030 | F25: 14 | G25: 0.14
A26: 10 | B26: 9678 | C26: 9773.78 | E26: 10060 | F26: 12 | G26: 0.12
A27: 11 | B27: 9902 | C27: 10000.02 | E27: 10090 | F27: 26 | G27: 0.26
A28: 12 | B28: 9997 | C28: 10095.97 | E28: 10120 | F28: 6 | G28: 0.06
A29: 13 | B29: 9794 | C29: 9890.94 | E29: 10150 | F29: 0 | G29: 0
A30: 14 | B30: 9764 | C30: 9860.64 | E30: 10180 | F30: 0 | G30: 0
A31: 15 | B31: 9673 | C31: 9768.73 | E31: 10210 | F31: 0 | G31: 0
A32: 16 | B32: 9923 | C32: 10021.23 | E32: 10240 | F32: 0 | G32: 0
A33: 17 | B33: 9795 | C33: 9891.95 | E33: 10270 | F33: 0 | G33: 0
A34: 18 | B34: 9860 | C34: 9957.6 | E34: 10300 | F34: 0 | G34: 0
A35: 19 | B35: 9951 | C35: 10049.51 | F35: =SUM(F14:F34) -> 100
A36: 20 | B36: 9180 | C36: 9270.8
A37: 21 | B37: 9984 | C37: 10082.84
A38: 22 | B38: 9839 | C38: 9936.39
A39: 23 | B39: 9990 | C39: 10088.9
A40: 24 | B40: 9571 | C40: 9665.71
A41: 25 | B41: 9897 | C41: 9994.97
A42: 26 | B42: 9980 | C42: 10078.8
A43: 27 | B43: 9916 | C43: 10014.16
A44: 28 | B44: 9830 | C44: 9927.3
A45: 29 | B45: 9994 | C45: 10092.94
A46: 30 | B46: 9987 | C46: 10085.87
A47: 31 | B47: 9993 | C47: 10091.93
A48: 32 | B48: 9864 | C48: 9961.64
A49: 33 | B49: =RANDSamples(_min,_max,_k) -> 9982 | C49: =B49*(1+1/_k)-1 -> 10080.82
A50: 34 | B50: 9963 | C50: 10061.63
A51: 35 | B51: 9903 | C51: 10001.03
A52: 36 | B52: 9960 | C52: 10058.6
A53: 37 | B53: 9970 | C53: 10068.7
A54: 38 | B54: 9923 | C54: 10021.23
A55: 39 | B55: 9944 | C55: 10042.44
A56: 40 | B56: 9983 | C56: 10081.83
A57: 41 | B57: 9979 | C57: 10077.79
A58: 42 | B58: 9922 | C58: 10020.22
A59: 43 | B59: 9827 | C59: 9924.27
A60: 44 | B60: 9818 | C60: 9915.18
A61: 45 | B61: 9995 | C61: 10093.95
A62: 46 | B62: 9813 | C62: 9910.13
A63: 47 | B63: 9968 | C63: 10066.68
A64: 48 | B64: 9894 | C64: 9991.94
A65: 49 | B65: 9695 | C65: 9790.95
A66: 50 | B66: 9899 | C66: 9996.99
A67: 51 | B67: 9952 | C67: 10050.52
A68: 52 | B68: 9987 | C68: 10085.87
A69: 53 | B69: 9846 | C69: 9943.46
A70: 54 | B70: 9894 | C70: 9991.94
A71: 55 | B71: 9976 | C71: 10074.76
A72: 56 | B72: 9987 | C72: 10085.87
A73: 57 | B73: 9842 | C73: 9939.42
A74: 58 | B74: 9986 | C74: 10084.86
A75: 59 | B75: 9840 | C75: 9937.4
A76: 60 | B76: 9991 | C76: 10089.91
A77: 61 | B77: 9787 | C77: 9883.87
A78: 62 | B78: 9927 | C78: 10025.27
A79: 63 | B79: 10000 | C79: 10099
A80: 64 | B80: 9938 | C80: 10036.38
A81: 65 | B81: =RANDSamples(_min,_max,_k) -> 9936 | C81: =B81*(1+1/_k)-1 -> 10034.36
A82: 66 | B82: 9979 | C82: 10077.79
A83: 67 | B83: 9709 | C83: 9805.09
A84: 68 | B84: 9790 | C84: 9886.9
A85: 69 | B85: 9952 | C85: 10050.52
A86: 70 | B86: 9709 | C86: 9805.09
A87: 71 | B87: 9983 | C87: 10081.83
A88: 72 | B88: 9964 | C88: 10062.64
A89: 73 | B89: 9931 | C89: 10029.31
A90: 74 | B90: 9966 | C90: 10064.66
A91: 75 | B91: 9577 | C91: 9671.77
A92: 76 | B92: 10000 | C92: 10099
A93: 77 | B93: 9928 | C93: 10026.28
A94: 78 | B94: 9960 | C94: 10058.6
A95: 79 | B95: 9788 | C95: 9884.88
A96: 80 | B96: 9714 | C96: 9810.14
A97: 81 | B97: 9948 | C97: 10046.48
A98: 82 | B98: 9906 | C98: 10004.06
A99: 83 | B99: 9977 | C99: 10075.77
A100: 84 | B100: 9861 | C100: 9958.61
A101: 85 | B101: 9795 | C101: 9891.95
A102: 86 | B102: 9826 | C102: 9923.26
A103: 87 | B103: 9981 | C103: 10079.81
A104: 88 | B104: 9961 | C104: 10059.61
A105: 89 | B105: 9832 | C105: 9929.32
A106: 90 | B106: 9961 | C106: 10059.61
A107: 91 | B107: 9984 | C107: 10082.84
A108: 92 | B108: 9833 | C108: 9930.33
A109: 93 | B109: 9950 | C109: 10048.5
A110: 94 | B110: 9921 | C110: 10019.21
A111: 95 | B111: 9908 | C111: 10006.08
A112: 96 | B112: 9890 | C112: 9987.9
A113: 97 | B113: 9894 | C113: =B113*(1+1/_k)-1 -> 9991.94
A114: 98 | B114: 9881 | C114: 9978.81
A115: 99 | B115: 9574 | C115: 9668.74
A116: 100 | B116: 9990 | C116: 10088.9

Sheet Bayesian
A1: FROM: | B1: Mark Biegert
A2: SUBJECT: | B2: German Tank Problem Example | H2: Title | I2: Bayesian German Tank Production Model
A3: DATE: | B3: 2015-04-21 | H3: X-Axis | I3: Bin
H4: Y-Axis | I4: Percentage (%)
A5: Reference Link
B6: Wikipedia
B7: Wikieducator
A9: Monte Carlo Simulation
A11: max | B11: 10000
A12: min | B12: 1
A13: k | B13: 100 | E13: Bins | F13: Freq | G13: Percentage
A14: Ave | B14: =AVERAGE(_Predictions) -> 10010.93051 | E14: 9700 | F14: =FREQUENCY(_Predictions,_bins) -> 0 | G14: =F14/$F$35 -> 0
E15: 9730 | F15: 1 | G15: =F15/$F$35 -> 0.01
A16: Sample Set | B16: Max Val | C16: Max Est | E16: 9760 | F16: 1 | G16: 0.01
A17: 1 | B17: =RANDSamples(_min,_max,_k) -> 9741 | C17: =(_k-1)/(_k-2)*(B17-1) -> 9839.387755 | E17: 9790 | F17: 0 | G17: 0
A18: 2 | B18: 9720 | C18: 9818.173469 | E18: 9820 | F18: 2 | G18: 0.02
A19: 3 | B19: 9996 | C19: 10096.9898 | E19: 9850 | F19: 4 | G19: 0.04
A20: 4 | B20: 9959 | C20: 10059.61224 | E20: 9880 | F20: 1 | G20: 0.01
A21: 5 | B21: 9904 | C21: 10004.05102 | E21: 9910 | F21: 5 | G21: 0.05
A22: 6 | B22: 9946 | C22: 10046.47959 | E22: 9940 | F22: 6 | G22: 0.06
A23: 7 | B23: 9962 | C23: 10062.64286 | E23: 9970 | F23: 7 | G23: 0.07
A24: 8 | B24: 9966 | C24: 10066.68367 | E24: 10000 | F24: 7 | G24: 0.07
A25: 9 | B25: 9917 | C25: 10017.18367 | E25: 10030 | F25: 9 | G25: 0.09
A26: 10 | B26: 9985 | C26: 10085.87755 | E26: 10060 | F26: 17 | G26: 0.17
A27: 11 | B27: 9978 | C27: 10078.80612 | E27: 10090 | F27: 34 | G27: 0.34
A28: 12 | B28: 9961 | C28: 10061.63265 | E28: 10120 | F28: 6 | G28: 0.06
A29: 13 | B29: 9973 | C29: 10073.7551 | E29: 10150 | F29: 0 | G29: 0
A30: 14 | B30: 9893 | C30: 9992.938776 | E30: 10180 | F30: 0 | G30: 0
A31: 15 | B31: 9951 | C31: 10051.53061 | E31: 10210 | F31: 0 | G31: 0
A32: 16 | B32: 9986 | C32: 10086.88776 | E32: 10240 | F32: 0 | G32: 0
A33: 17 | B33: 9987 | C33: 10087.89796 | E33: 10270 | F33: 0 | G33: 0
A34: 18 | B34: 9909 | C34: 10009.10204 | E34: 10300 | F34: 0 | G34: 0
A35: 19 | B35: 9722 | C35: 9820.193878 | F35: =SUM(F14:F34) -> 100
A36: 20 | B36: 9897 | C36: 9996.979592
A37: 21 | B37: 9966 | C37: 10066.68367
A38: 22 | B38: 9932 | C38: 10032.33673
A39: 23 | B39: 9853 | C39: 9952.530612
A40: 24 | B40: 9997 | C40: 10098
A41: 25 | B41: 9938 | C41: 10038.39796
A42: 26 | B42: 9977 | C42: 10077.79592
A43: 27 | B43: 9801 | C43: 9900
A44: 28 | B44: 9834 | C44: 9933.336735
A45: 29 | B45: 9948 | C45: 10048.5
A46: 30 | B46: 9868 | C46: 9967.683673
A47: 31 | B47: 9951 | C47: 10051.53061
A48: 32 | B48: 9998 | C48: 10099.0102
A49: 33 | B49: =RANDSamples(_min,_max,_k) -> 9776 | C49: =(_k-1)/(_k-2)*(B49-1) -> 9874.744898
A50: 34 | B50: 9963 | C50: 10063.65306
A51: 35 | B51: 9968 | C51: 10068.70408
A52: 36 | B52: 9980 | C52: 10080.82653
A53: 37 | B53: 9891 | C53: 9990.918367
A54: 38 | B54: 9645 | C54: 9742.408163
A55: 39 | B55: 9982 | C55: 10082.84694
A56: 40 | B56: 9803 | C56: 9902.020408
A57: 41 | B57: 9730 | C57: 9828.27551
A58: 42 | B58: 9911 | C58: 10011.12245
A59: 43 | B59: 9979 | C59: 10079.81633
A60: 44 | B60: 9981 | C60: 10081.83673
A61: 45 | B61: 9853 | C61: 9952.530612
A62: 46 | B62: 9947 | C62: 10047.4898
A63: 47 | B63: 9971 | C63: 10071.73469
A64: 48 | B64: 9986 | C64: 10086.88776
A65: 49 | B65: 9921 | C65: 10021.22449
A66: 50 | B66: 9901 | C66: 10001.02041
A67: 51 | B67: 9959 | C67: 10059.61224
A68: 52 | B68: 9950 | C68: 10050.52041
A69: 53 | B69: 9823 | C69: 9922.22449
A70: 54 | B70: 9627 | C70: 9724.22449
A71: 55 | B71: 9868 | C71: 9967.683673
A72: 56 | B72: 9975 | C72: 10075.77551
A73: 57 | B73: 9967 | C73: 10067.69388
A74: 58 | B74: 9978 | C74: 10078.80612
A75: 59 | B75: 9890 | C75: 9989.908163
A76: 60 | B76: 9940 | C76: 10040.41837
A77: 61 | B77: 9996 | C77: 10096.9898
A78: 62 | B78: 9977 | C78: 10077.79592
A79: 63 | B79: 9816 | C79: 9915.153061
A80: 64 | B80: 9986 | C80: 10086.88776
A81: 65 | B81: =RANDSamples(_min,_max,_k) -> 9951 | C81: =(_k-1)/(_k-2)*(B81-1) -> 10051.53061
A82: 66 | B82: 9969 | C82: 10069.71429
A83: 67 | B83: 10000 | C83: 10101.03061
A84: 68 | B84: 9947 | C84: 10047.4898
A85: 69 | B85: 9892 | C85: 9991.928571
A86: 70 | B86: 9973 | C86: 10073.7551
A87: 71 | B87: 9945 | C87: 10045.46939
A88: 72 | B88: 9917 | C88: 10017.18367
A89: 73 | B89: 9980 | C89: 10080.82653
A90: 74 | B90: 9919 | C90: 10019.20408
A91: 75 | B91: 9831 | C91: 9930.306122
A92: 76 | B92: 9980 | C92: 10080.82653
A93: 77 | B93: 9967 | C93: 10067.69388
A94: 78 | B94: 9721 | C94: 9819.183673
A95: 79 | B95: 9890 | C95: 9989.908163
A96: 80 | B96: 9803 | C96: 9902.020408
A97: 81 | B97: 9954 | C97: 10054.56122
A98: 82 | B98: 9804 | C98: 9903.030612
A99: 83 | B99: 9741 | C99: 9839.387755
A100: 84 | B100: 9867 | C100: 9966.673469
A101: 85 | B101: 9996 | C101: 10096.9898
A102: 86 | B102: 9953 | C102: 10053.55102
A103: 87 | B103: 9957 | C103: 10057.59184
A104: 88 | B104: 9807 | C104: 9906.061224
A105: 89 | B105: 9960 | C105: 10060.62245
A106: 90 | B106: 9859 | C106: 9958.591837
A107: 91 | B107: 9968 | C107: 10068.70408
A108: 92 | B108: 9960 | C108: 10060.62245
A109: 93 | B109: 9833 | C109: 9932.326531
A110: 94 | B110: 9883 | C110: 9982.836735
A111: 95 | B111: 9855 | C111: 9954.55102
A112: 96 | B112: 9904 | C112: 10004.05102
A113: 97 | B113: 9811 | C113: =(_k-1)/(_k-2)*(B113-1) -> 9910.102041
A114: 98 | B114: 9981 | C114: 10081.83673
A115: 99 | B115: 9967 | C115: 10067.69388
A116: 100 | B116: 9980 | C116: 10080.82653
